fUSD/lending_fUSD_20251221
["ID","MTS","AMOUNT","RATE_DAILY","PERIOD"]
[399315993,1766286663697,-302.53170336,0.00038526,2]
[399315994,1766286663706,-303.70558288,0.00038526,2]
[399315995,1766286663716,-483.52604612,0.00038526,2]
[399315996,1766286663726,-594.25824151,0.00038526,2]
[399315997,1766286663740,-363.48275521,0.00038526,2]
[399315998,1766286663750,-302.53170336,0.00038526,2]
[399315999,1766286663761,-303.70558288,0.00038526,2]
[399316000,1766286663770,-594.25824151,0.00038526,2]
[399316001,1766286663780,-363.48275521,0.00038526,2]
[399316002,1766286663789,-416.66278534,0.00038526,2]
[399316003,1766286663799,-413.81801862,0.00038526,2]
[399316004,1766286663808,-594.25824151,0.00038526,2]
[399316005,1766286663818,-363.48275521,0.00038526,2]
[399316006,1766286663827,-594.25824151,0.00038526,2]
[399316007,1766286663836,-363.48275521,0.00038526,2]
[399316008,1766286663845,-594.25824151,0.00038526,2]
[399316009,1766286663855,-363.48275521,0.00038526,2]
[399316010,1766286663864,-594.25824151,0.00038526,2]
[399316011,1766286663874,-363.48275521,0.00038526,2]
[399316012,1766286663883,-594.25824151,0.00038526,2]
[399316013,1766286663892,-363.48275521,0.00038526,2]
[399316014,1766286663902,-594.25824151,0.00038526,2]
[399316015,1766286663912,-363.48275521,0.00038526,2]
[399316016,1766286663921,-792.60469569,0.00038526,2]
[399316017,1766286663930,-484.80294193,0.00038526,2]
[399316018,1766286663939,-594.25824151,0.00038526,2]
[399316019,1766286663948,-363.4827552,0.00038526,2]
[399316020,1766286663958,-300.0,0.00038526,2]
[399316021,1766286663967,-300.0,0.00038526,2]
[399316022,1766286663976,-300.0,0.00038526,2]
[399316023,1766286663986,-300.0,0.00038526,2]
[399316024,1766286663996,-300.0,0.00038526,2]
[399316025,1766286664010,-300.0,0.00038526,2]
[399316026,1766286664020,-302.53170336,0.00038526,2]
[399316027,1766286664029,-300.0,0.00038526,2]
[399316028,1766286664039,-302.65974984,0.00038526,2]
[399316029,1766286664048,-300.0,0.00038526,2]
[399316030,1766286664057,-303.70558288,0.00038526,2]
[399316031,1766286664067,-300.0,0.00038526,2]
[399316032,1766286664081,-300.0,0.00038526,2]
[399316033,1766286664090,-367.23919955,0.00038526,2]
[399316034,1766286664099,-300.0,0.00038526,2]
[399316035,1766286664108,-300.0,0.00038526,2]
[399316036,1766286664118,-302.91346157,0.00038526,2]
[399316037,1766286664127,-300.0,0.00038526,2]
[399316038,1766286664136,-300.0,0.00038526,2]
[399316039,1766286664145,-510.18573231,0.00038526,2]
[399316040,1766286664154,-300.0,0.00038526,2]
[399316041,1766286664163,-300.0,0.00038526,2]
[399316042,1766286664172,-300.0,0.00038526,2]
[399316043,1766286664181,-594.25824151,0.00038526,2]
[399316044,1766286664190,-363.4827552,0.00038526,2]
[399316045,1766286664199,-300.0,0.00038526,2]
[399316046,1766286664208,-300.0,0.00038526,2]
[399316047,1766286664217,-300.0,0.00038526,2]
[399316048,1766286664227,-300.0,0.00038526,2]
[399316049,1766286664237,-300.0,0.00038526,2]
[399316050,1766286664246,-300.0,0.00038526,2]
[399316051,1766286664255,-302.53170336,0.00038526,2]
[399316052,1766286664264,-300.0,0.00038526,2]
[399316053,1766286664273,-302.65974983,0.00038526,2]
[399316054,1766286664282,-300.0,0.00038526,2]
[399316055,1766286664291,-303.70558288,0.00038526,2]
[399316056,1766286664304,-300.0,0.00038526,2]
[399316057,1766286664313,-300.0,0.00038526,2]
[399316058,1766286664323,-300.0,0.00038526,2]
[399316059,1766286664332,-367.23919955,0.00038526,2]
[399316060,1766286664341,-300.0,0.00038526,2]
[399316061,1766286664350,-302.91346157,0.00038526,2]
[399316062,1766286664359,-300.0,0.00038526,2]
[399316063,1766286664368,-300.0,0.00038526,2]
[399316064,1766286664377,-510.18573231,0.00038526,2]
[399316065,1766286664387,-300.0,0.00038526,2]
[399316066,1766286664396,-300.0,0.00038526,2]
[399316067,1766286664405,-300.0,0.00038526,2]
[399316068,1766286664414,-594.25824151,0.00038526,2]
[399316069,1766286664424,-363.48275522,0.00038526,2]
[399316070,1766286664433,-300.0,0.00038526,2]
[399316071,1766286664442,-300.0,0.00038526,2]
[399316072,1766286664451,-300.0,0.00038526,2]
[399316073,1766286664461,-300.0,0.00038526,2]
[399316074,1766286664470,-300.0,0.00038526,2]
[399316075,1766286664479,-302.53170336,0.00038526,2]
[399316076,1766286664488,-300.0,0.00038526,2]
[399316077,1766286664497,-300.0,0.00038526,2]
[399316078,1766286664507,-302.65974983,0.00038526,2]
[399316079,1766286664516,-300.0,0.00038526,2]
[399316080,1766286664525,-303.70558288,0.00038526,2]
[399316081,1766286664534,-300.0,0.00038526,2]
[399316082,1766286664543,-300.0,0.00038526,2]
[399316083,1766286664552,-367.23919955,0.00038526,2]
[399316084,1766286664562,-300.0,0.00038526,2]
[399316085,1766286664571,-300.0,0.00038526,2]
[399316086,1766286664580,-302.91346157,0.00038526,2]
[399316087,1766286664589,-300.0,0.00038526,2]
[399316088,1766286664599,-300.0,0.00038526,2]
[399316089,1766286664608,-510.18573231,0.00038526,2]
[399316090,1766286664617,-318.08330281,0.00038526,2]
[399316091,1766286664626,-300.0,0.00038526,2]
[399316092,1766286664636,-300.0,0.00038526,2]
[399316093,1766286664645,-594.25824151,0.00038526,2]
[399316094,1766286664654,-363.4827552,0.00038526,2]
[399316095,1766286664663,-300.0,0.00038526,2]
[399316096,1766286664672,-300.0,0.00038526,2]
[399316097,1766286664681,-300.0,0.00038526,2]
[399316098,1766286664690,-300.0,0.00038526,2]
[399316099,1766286664698,-302.70055519,0.00038526,2]
[399316100,1766286664707,-300.0,0.00038526,2]
[399316101,1766286664716,-302.53170336,0.00038526,2]
[399316102,1766286664725,-300.0,0.00038526,2]
[399316103,1766286664735,-302.65974983,0.00038526,2]
[399316104,1766286664743,-300.0,0.00038526,2]
[399316105,1766286664753,-303.70558288,0.00038526,2]
[399316106,1766286664762,-300.0,0.00038526,2]
[399316107,1766286664771,-300.0,0.00038526,2]
[399316108,1766286664780,-367.23919955,0.00038526,2]
[399316109,1766286664790,-300.0,0.00038526,2]
[399316110,1766286664799,-300.0,0.00038526,2]
[399316111,1766286664809,-302.91346157,0.00038526,2]
[399316112,1766286664819,-300.0,0.00038526,2]
[399316113,1766286664828,-300.0,0.00038526,2]
[399316114,1766286664837,-300.0,0.00038526,2]
[399316115,1766286664851,-300.0,0.00038526,2]
[399316116,1766286664861,-594.25824151,0.00038526,2]
[399316117,1766286664870,-363.48275522,0.00038526,2]
[399316118,1766286664879,-300.0,0.00038526,2]
[399316119,1766286664889,-300.0,0.00038526,2]
[399316120,1766286664898,-300.0,0.00038526,2]
[399316121,1766286664908,-300.0,0.00038526,2]
[399316122,1766286664918,-300.0,0.00038526,2]
[399316123,1766286664927,-302.53170336,0.00038526,2]
[399316124,1766286664936,-300.0,0.00038526,2]
[399316125,1766286664945,-302.65974983,0.00038526,2]
[399316126,1766286664954,-300.0,0.00038526,2]
[399316127,1766286664964,-303.70558288,0.00038526,2]
[399316128,1766286664973,-300.0,0.00038526,2]
[399316129,1766286664982,-300.0,0.00038526,2]
[399316130,1766286664991,-367.23919955,0.00038526,2]
[399316131,1766286665002,-314.13585639,0.00038526,2]
[399316132,1766286665012,-300.0,0.00038526,2]
[399316133,1766286665021,-302.91346157,0.00038526,2]
[399316134,1766286665030,-524.82977987,0.00038526,2]
[399316135,1766286665039,-361.53015896,0.00038526,2]
[399316136,1766286665049,-422.24933052,0.00038526,2]
[399316137,1766286665058,-313.88048376,0.00038526,2]
[399316138,1766286665068,-594.25824151,0.00038526,2]
[399316139,1766286665079,-363.4827552,0.00038526,2]
[399316140,1766286665090,-300.0,0.00038526,2]
[399316141,1766286665099,-300.0,0.00038526,2]
[399316142,1766286665109,-300.0,0.00038526,2]
[399316143,1766286665120,-300.0,0.00038526,2]
[399316144,1766286665129,-300.0,0.00038526,2]
[399316145,1766286665138,-302.53170336,0.00038526,2]
[399316146,1766286665147,-300.0,0.00038526,2]
[399316147,1766286665156,-302.65974983,0.00038526,2]
[399316148,1766286665166,-300.0,0.00038526,2]
[399316149,1766286665175,-303.70558288,0.00038526,2]
[399316150,1766286665184,-300.0,0.00038526,2]
[399316151,1766286665193,-300.0,0.00038526,2]
[399316152,1766286665203,-367.23919955,0.00038526,2]
[399316153,1766286665212,-300.0,0.00038526,2]
[399316154,1766286665221,-302.91346157,0.00038526,2]
[399316155,1766286665234,-594.25824151,0.00038526,2]
[399316156,1766286665243,-363.48275522,0.00038526,2]
[399316157,1766286665252,-300.0,0.00038526,2]
[399316158,1766286665261,-300.0,0.00038526,2]
[399316159,1766286665271,-300.0,0.00038526,2]
[399316160,1766286665281,-498.47094144,0.00038526,2]
[399316161,1766286665290,-300.0,0.00038526,2]
[399316162,1766286665299,-302.53170336,0.00038526,2]
[399316163,1766286665308,-313.42299324,0.00038526,2]
[399316164,1766286665317,-302.70668584,0.00038526,2]
[399316165,1766286665326,-300.2713754,0.00038526,2]
[399316166,1766286665335,-304.98233771,0.00038526,2]
[399316167,1766286665344,-301.34932445,0.00038526,2]
[399316168,1766286665353,-301.33147609,0.00038526,2]
[399316169,1766286665363,-369.42027577,0.00038526,2]
[399316170,1766286665372,-300.27519608,0.00038526,2]
[399316171,1766286665381,-304.33807023,0.00038526,2]
[399316172,1766286665390,-595.1699509,0.00038526,2]
[399316173,1766286665399,-364.04040927,0.00038526,2]
[399316174,1766286665408,-300.36130729,0.00038526,2]
[399316175,1766286665418,-300.27686671,0.00038526,2]
[399316176,1766286665427,-330.78308651,0.00038526,2]
[399316177,1766286665436,-300.68290068,0.00038526,2]
[399316178,1766286665445,-303.80835552,0.00038526,2]
[399316179,1766286665455,-302.70668584,0.00038526,2]
[399316180,1766286665464,-399.92675353,0.00038526,2]
[399316181,1766286665473,-303.70558288,0.00038526,2]
[399316182,1766286665482,-300.0,0.00038526,2]
[399316183,1766286665492,-300.0,0.00038526,2]
[399316184,1766286665501,-367.23919955,0.00038526,2]
[399316185,1766286665510,-539.45420586,0.00038526,2]
[399316186,1766286665519,-302.91346158,0.00038526,2]
[399316187,1766286665529,-594.25824151,0.00038526,2]
[399316188,1766286665538,-363.48275521,0.00038526,2]
[399316189,1766286665547,-300.0,0.00038526,2]
[399316190,1766286665557,-301.18233396,0.00038526,2]
[399316191,1766286665566,-300.0,0.00038526,2]
[399316192,1766286665576,-302.53170337,0.00038526,2]
[399316193,1766286665585,-304.13041159,0.00038526,2]
[399316194,1766286665595,-303.70558288,0.00038526,2]
[399316195,1766286665604,-300.0,0.00038526,2]
[399316196,1766286665617,-307.2413368,0.00038526,2]
[399316197,1766286665627,-367.23919955,0.00038526,2]
[399316198,1766286665637,-302.91346157,0.00038526,2]
[399316199,1766286665648,-594.25824151,0.00038526,2]
[399316200,1766286665658,-363.48275521,0.00038526,2]
[399316201,1766286665667,-300.0,0.00038526,2]
[399316202,1766286665676,-300.0,0.00038526,2]
[399316203,1766286665686,-302.53170336,0.00038526,2]
[399316204,1766286665695,-302.65974982,0.00038526,2]
[399316205,1766286665705,-303.70558288,0.00038526,2]
[399316206,1766286665714,-300.0,0.00038526,2]
[399316207,1766286665726,-367.23919955,0.00038526,2]
[399316208,1766286665735,-302.91346157,0.00038526,2]
[399316209,1766286665745,-594.25824151,0.00038526,2]
[399316210,1766286665756,-363.48275521,0.00038526,2]
[399316211,1766286665766,-300.0,0.00038526,2]
[399316212,1766286665775,-445.61990637,0.00038526,2]
[399316213,1766286665784,-302.53170336,0.00038526,2]
[399316214,1766286665794,-302.70668584,0.00038526,2]
[399316215,1766286665803,-303.70558288,0.00038526,2]
[399316216,1766286665813,-360.21952423,0.00038526,2]
[399316217,1766286665822,-367.23919955,0.00038526,2]
[399316218,1766286665831,-302.91346157,0.00038526,2]
[399316219,1766286665840,-594.25824151,0.00038526,2]
[399316220,1766286665849,-363.48275521,0.00038526,2]
[399316221,1766286665859,-300.0,0.00038526,2]
[399316222,1766286665868,-302.53170336,0.00038526,2]
[399316223,1766286665877,-302.70668584,0.00038526,2]
[399316224,1766286665887,-303.70558288,0.00038526,2]
[399316225,1766286665896,-367.23919955,0.00038526,2]
[399316226,1766286665906,-302.91346157,0.00038526,2]
[399316227,1766286665915,-594.25824151,0.00038526,2]
[399316228,1766286665925,-363.48275521,0.00038526,2]
[399316229,1766286665935,-300.0,0.00038526,2]
[399316230,1766286665945,-302.53170336,0.00038526,2]
[399316231,1766286665954,-302.56587781,0.00038526,2]
[399316232,1766286665964,-303.70558288,0.00038526,2]
[399316233,1766286665974,-367.23919955,0.00038526,2]
[399316234,1766286665983,-302.91346157,0.00038526,2]
[399316235,1766286665992,-594.25824151,0.00038526,2]
[399316236,1766286666012,-363.48275521,0.00038526,2]
[399316237,1766286666033,-300.0,0.00038526,2]
[399316238,1766286666050,-302.53170336,0.00038526,2]
[399316239,1766286666065,-302.70668584,0.00038526,2]
[399316240,1766286666075,-303.70558288,0.00038526,2]
[399316241,1766286666085,-367.23919955,0.00038526,2]
[399316242,1766286666095,-302.91346157,0.00038526,2]
[399316243,1766286666105,-594.25824151,0.00038526,2]
[399316244,1766286666116,-363.48275521,0.00038526,2]
[399316245,1766286666128,-300.0,0.00038526,2]
[399316246,1766286666138,-302.53170336,0.00038526,2]
[399316247,1766286666147,-302.61281383,0.00038526,2]
[399316248,1766286666156,-303.70558288,0.00038526,2]
[399316249,1766286666166,-367.23919955,0.00038526,2]
[399316250,1766286666175,-302.91346157,0.00038526,2]
[399316251,1766286666185,-594.25824151,0.00038526,2]
[399316252,1766286666196,-363.48275521,0.00038526,2]
[399316253,1766286666207,-300.0,0.00038526,2]
[399316254,1766286666218,-302.53170336,0.00038526,2]
[399316255,1766286666228,-302.65974982,0.00038526,2]
[399316256,1766286666237,-303.70558288,0.00038526,2]
[399316257,1766286666246,-367.23919955,0.00038526,2]
[399316258,1766286666255,-302.91346157,0.00038526,2]
[399316259,1766286666264,-515.00151445,0.00038526,2]
[399316260,1766286666274,-594.25824151,0.00038526,2]
[399316261,1766286666284,-363.48275521,0.00038526,2]
[399316262,1766286666292,-300.0,0.00038526,2]
[399316263,1766286666302,-302.53170336,0.00038526,2]
[399316264,1766286666311,-1000.0,0.00038547,120]
[399316265,1766286666320,-1000.0,0.00038575,120]
[399316266,1766286666329,-21507.87115658,0.00038584,2]
[399316267,1766286666339,-5018.83881,0.0003859,30]
[399316268,1766286666348,-1000.0,0.00038602,120]
[399316269,1766286666357,-150.0,0.0003861,30]
[399316270,1766286666369,-150.0,0.0003861,30]
[399316271,1766286666380,-2611.65665936,0.00038627,7]
[399316272,1766286666389,-959.0,0.0003863,120]
[399316273,1766286666399,-1000.0,0.0003863,120]
[399316274,1766286666409,-800.0,0.0003863,120]
[399316275,1766286666419,-1000.0,0.00038657,120]
[399316276,1766286666428,-1000.0,0.00038684,120]
[399316277,1766286666438,-935.25146178,0.00038712,120]
[399316278,1766286666448,-959.0,0.00038767,120]
[399316279,1766286666458,-10172.4475962,0.000388,2]
[399316280,1766286666468,-770.0,0.00038849,33]
[399316281,1766286666478,-15027.09111662,0.00038874,2]
[399316282,1766286666487,-54716.15,0.0003888,120]
[399316283,1766286666497,-40948.51033554,0.0003888,120]
[399316284,1766286666507,-151.0,0.0003888,120]
[399316285,1766286666516,-151.0,0.0003888,120]
[399316286,1766286666525,-1386.093682,0.0003888,120]
[399316287,1766286666535,-1386.093682,0.0003888,120]
[399316288,1766286666545,-1386.093682,0.0003888,120]
[399316289,1766286666555,-1386.093682,0.0003888,120]
[399316290,1766286666564,-521.193,0.00038888,30]
[399316291,1766286666573,-490.9557885,0.000389,31]
[399316292,1766286666582,-329.06456843,0.000389,120]
[399316293,1766286666591,-236.88002226,0.000389,2]
[399316294,1766286666601,-959.0,0.00038904,120]
[399316295,1766286666611,-800.0,0.00038904,120]
[399316296,1766286666620,-12242.3,0.00038904,2]
[399316297,1766286666630,-208.0,0.0003891,30]
[399316298,1766286666639,-400.0,0.0003897,2]
[399316299,1766286666648,-400.0,0.0003897,2]
[399316300,1766286666658,-1524771.6294667,0.00038973,4]
[399316301,1766286666667,-151.0,0.00038997,120]
[399316302,1766286666676,-151.0,0.00038997,120]
[399316303,1766286666685,-151.0,0.00038997,120]
[399316304,1766286666694,-290.442547,0.00038997,120]
[399316305,1766286666703,-2671.76281926,0.00039,31]
[399316306,1766286666717,-3655427.36330338,0.00039,2]
[399316307,1766286667754,-366.81,0.0001308,2]
[399316308,1766286667765,-48926.11075224,0.00039,2]
[399316309,1766286667851,-366.81,0.00015278,2]
[399316310,1766286667860,-366.81,0.00016627,2]
[399316311,1766286667871,-244.54,0.00018098,2]
[399316312,1766286667880,-5452.83320234,0.00039,2]
[399316313,1766286667892,-2965.8690525,0.00039,2]
[399316314,1766286667920,-178.41,0.00025479,2]
[399316315,1766286667931,-659.21,0.00028219,2]
[399316316,1766286667940,-108.88939044,0.00032055,2]
[399316317,1766286667952,-1110.04060956,0.00032055,2]
[399316318,1766286667962,-170.64,0.00034521,2]
[399316319,1766286667972,-2940.71939044,0.00039,2]
[399316320,1766286667984,-1350.77781384,0.00039,2]
[399316321,1766286668042,-4053.37935478,0.00039,2]
[399316322,1766286668054,-700.53782515,0.00039,2]
[399316323,1766286668118,-244.54,0.0001822,2]
[399316324,1766286668128,-110.82519998,0.00039,2]
[399316325,1766286668256,-244.54,0.00018342,2]
[399316326,1766286668266,-464.6,0.00027945,2]
[399316327,1766286668276,-838.31823865,0.00039,2]
[399316328,1766286668288,-253.52,0.00039,2]
[399316329,1766286668300,-325.0,0.00039,2]
[399316330,1766286668312,-871.56206,0.00039,2]
[399316331,1766286668324,-6406.5498586,0.00039,2]
[399316332,1766286668336,-4868.48281942,0.00039,2]
[399316333,1766286668348,-879.29688766,0.00039,2]
[399316334,1766286668359,-421.265,0.00039,2]
[399316335,1766286668372,-4872.59661998,0.00039,2]
[399316336,1766286668384,-968.2019759,0.00039,2]
[399316337,1766286668757,-929.27452614,0.00039,2]
[399316338,1766286668804,-1820.0,0.00039,2]
[399316339,1766286668816,-2910.41041625,0.00039,2]
[399316340,1766286668827,-1950.21131037,0.00039,2]
[399316341,1766286668846,-21540.88881389,0.00039,2]
[399316556,1766287833413,-986.2164033,0.00011931,2]
[399316557,1766287833422,-300.0,0.00012029,2]
[399316558,1766287833431,-3614.158412,0.0001203,2]
[399316559,1766287833468,-871.59889273,0.0001203,2]
[399316560,1766287833479,-3773.8207,0.0001203,2]
[399316561,1766287833490,-1368.78642871,0.0001203,2]
[399316562,1766287833502,-5122.77531072,0.0001203,2]
[399316563,1766287833513,-811.07141251,0.0001203,2]
[399316564,1766287833535,-13984.56876958,0.0001203,2]
[399316565,1766287833546,-17163.77196526,0.0001203,2]
[399316568,1766287838157,-500.0,0.00012029,2]
[399316569,1766287838173,-395.5214939,0.00012029,2]
[399316570,1766287838270,-104.4785061,0.00012029,2]
[399316571,1766287838281,-216.77295368,0.00012029,2]
[399316572,1766287838293,-311.56155089,0.00012029,2]
[399316706,1766287840266,-188.43844911,0.00012029,2]
[399316707,1766287840279,-322.05168204,0.00012029,2]
[399316708,1766287840483,-177.94831796,0.00012029,2]
[399316709,1766287840496,-500.0,0.00012029,2]
[399316710,1766287840508,-215.89767258,0.00012029,2]
[399316711,1766287840521,-500.0,0.00012029,2]
[399316712,1766287840533,-953289.44810849,0.0001203,2]
[399316713,1766287840545,-11403.90853977,0.00012031,2]
[399316714,1766287840558,-1115.57403938,0.00012129,3]
[399316715,1766287840570,-357.3036,0.00012131,2]
[399316716,1766287840581,-1000.0,0.00012131,2]
[399316717,1766287840594,-11403.90853975,0.00012572,2]
[399316718,1766287840606,-986.21640327,0.00012641,2]
[399316719,1766287840619,-31192.31811235,0.0001299,2]
[399316720,1766287840631,-11403.90853975,0.00013113,2]
[399316721,1766287840643,-420.0,0.00013205,2]
[399316722,1766287840655,-195.0,0.00013232,2]
[399316723,1766287840667,-262.77314397,0.00013232,2]
[399316724,1766287840679,-986.21640327,0.00013351,2]
[399316725,1766287840691,-11403.90853975,0.00013654,2]
[399316726,1766287840703,-515.29211594,0.00013698,2]
[399316727,1766287840715,-578.37313993,0.00013698,2]
[399316728,1766287840727,-500.0,0.00013698,2]
[399316730,1766287840739,-500.0,0.00013698,2]
[399316732,1766287840753,-500.0,0.00013698,2]
[399316733,1766287840765,-4999.99,0.00013699,2]
[399316734,1766287840778,-1600.11,0.00013699,2]
[399316735,1766287840791,-999.99,0.00013699,2]
[399316736,1766287840804,-499.99,0.00013699,2]
[399316737,1766287840817,-1000.0,0.00013699,2]
[399316738,1766287840828,-500.0,0.00013699,2]
[399316739,1766287840840,-171.01656512,0.00013699,2]
[399316740,1766287840852,-200.0,0.00013866,2]
[399316741,1766287840864,-11403.90853975,0.00014195,2]
[399316742,1766287840876,-587.0,0.00014495,2]
[399316743,1766287840888,-1961.14,0.00014589,2]
[399316744,1766287840899,-484.0,0.000146,2]
[399316745,1766287840911,-11403.90853975,0.00014736,2]
[399316746,1766287840924,-11403.90853975,0.00015277,2]
[399316747,1766287840935,-11403.90853975,0.00015818,2]
[399316748,1766287840947,-823.0,0.00015912,2]
[399316749,1766287840959,-186251.71012597,0.00016,4]
[399316750,1766287840975,-881938.35929916,0.00016,4]
[399316751,1766287840988,-9999.99,0.00016116,2]
[399316752,1766287841001,-166.66,0.00016199,2]
[399316753,1766287841012,-500.0,0.00016199,2]
[399316754,1766287841030,-5000.0084543,0.000162,5]
[399316755,1766287841046,-835.66,0.00016273,2]
[399316756,1766287841060,-11403.90853975,0.00016359,2]
[399316757,1766287841076,-574.0,0.00016371,2]
[399316758,1766287841091,-301.0606677,0.00016371,2]
[399316759,1766287841105,-500.0,0.00016438,2]
[399316760,1766287841120,-500.0,0.00016438,2]
[399316761,1766287841133,-500.0,0.00016438,2]
[399316762,1766287841146,-500.0,0.00016438,2]
[399316763,1766287841159,-381.76400835,0.00016438,2]
[399316764,1766287841171,-166.66,0.00016733,2]
[399316765,1766287841184,-11403.90853975,0.000169,2]
[399316766,1766287841196,-415.91737958,0.000169,2]
[399316767,1766287841208,-410.18800875,0.000169,2]
[399316768,1766287841220,-5891495.36050735,0.00017,2]
[399316771,1766287843216,-341.04,0.00014061,2]
[399316773,1766287845652,-645.17640327,0.00014061,2]
[399316774,1766287845675,-137.7870222,0.00017,2]
[399316775,1766287846224,-2659.14630567,0.000137,2]
[399316776,1766287846334,-1681.28327184,0.000137,2]
[399316777,1766287846394,-4491.83851285,0.000137,2]
[399316778,1766287846407,-3379.01848402,0.000137,2]
[399316779,1766287846456,-461.74759373,0.000137,2]
[399316780,1766287846467,-2021.31583189,0.000137,2]
[399316781,1766287846476,-175.72589358,0.000137,2]
[399316782,1766287846488,-3860.49561287,0.000137,2]
[399317007,1766289031326,-433.60596329,0.00011789,2]
[399317008,1766289031338,-20.32203671,0.00011789,2]
[399317009,1766289031347,-545.072,0.0001193,2]
[399317010,1766289031379,-497.76627144,0.0001193,2]
[399317011,1766289031434,-908.55577311,0.0001193,2]
[399317012,1766289031445,-326.9999999,0.0001193,2]
[399317013,1766289031455,-8062.10780649,0.0001193,2]
[399317014,1766289031489,-2332.08059724,0.0001193,2]
[399317015,1766289031543,-13927.76261831,0.0001193,2]
[399317025,1766289037446,-160.65678659,0.00011929,2]
[399317026,1766289037455,-166.61745107,0.00011929,2]
[399317027,1766289037465,-240.54750291,0.00011929,2]
[399317028,1766289037474,-252.24755375,0.00011929,2]
[399317029,1766289037483,-500.0,0.00011929,2]
[399317030,1766289037492,-500.0,0.00011929,2]
[399317031,1766289037501,-500.0,0.00011929,2]
[399317032,1766289037510,-500.0,0.00011929,2]
[399317033,1766289037519,-500.0,0.00011929,2]
[399317034,1766289037528,-500.0,0.00011929,2]
[399317035,1766289037537,-500.0,0.00011929,2]
[399317036,1766289037546,-500.0,0.00011929,2]
[399317037,1766289037558,-500.0,0.00011929,2]
[399317038,1766289037568,-500.0,0.00011929,2]
[399317039,1766289037579,-500.0,0.00011929,2]
[399317040,1766289037588,-279.92946152,0.00011929,2]
[399317041,1766289037599,-220.07053848,0.00011929,2]
[399317042,1766289037609,-199.05793528,0.00011929,2]
[399317056,1766289039440,-98.5316257,0.00011929,2]
[399317057,1766289039449,-161.6163743,0.00011929,2]
[399317058,1766289039461,-338.3836257,0.00011929,2]
[399317059,1766289039470,-500.0,0.00011929,2]
[399317060,1766289039480,-500.0,0.00011929,2]
[399317061,1766289039489,-295.79184181,0.00011929,2]
[399317062,1766289039500,-204.20815819,0.00011929,2]
[399317063,1766289039509,-255.66684181,0.00011929,2]
[399317064,1766289039521,-244.33315819,0.00011929,2]
[399317065,1766289039530,-500.0,0.00011929,2]
[399317066,1766289039539,-384.62651225,0.00011929,2]
[399317067,1766289039550,-115.37348775,0.00011929,2]
[399317068,1766289039559,-443.31832983,0.00011929,2]
[399317069,1766289039571,-56.68167017,0.00011929,2]
[399317070,1766289039580,-439.00552794,0.00011929,2]
[399317071,1766289039706,-60.99447206,0.00011929,2]
[399317072,1766289039716,-500.0,0.00011929,2]
[399317073,1766289039725,-500.0,0.00011929,2]
[399317074,1766289039735,-500.0,0.00011929,2]
[399317075,1766289039746,-973399.65493351,0.0001193,2]
[399317076,1766289039755,-157.92001484,0.0001193,2]
[399317077,1766289039767,-1960.85344973,0.0001193,2]
[399317078,1766289039777,-550.63343573,0.0001193,2]
[399317079,1766289039786,-200.0,0.00012023,2]
[399317080,1766289039798,-200.0,0.00012023,2]
[399317081,1766289039808,-500.0,0.00012023,2]
[399317082,1766289039818,-500.0,0.00012023,2]
[399317083,1766289039827,-151.0,0.00012023,2]
[399317084,1766289039836,-151.0,0.00012023,2]
[399317085,1766289039845,-151.0,0.00012023,2]
[399317086,1766289039854,-151.0,0.00012023,2]
[399317087,1766289039863,-151.0,0.00012023,2]
[399317088,1766289039873,-151.0,0.00012023,2]
[399317089,1766289039882,-151.0,0.00012023,2]
[399317090,1766289039891,-151.0,0.00012023,2]
[399317091,1766289039900,-151.0,0.00012023,2]
[399317092,1766289039909,-151.0,0.00012023,2]